bitfinex/quotes_SOLUSD_20251019
["timestamp","ask_amount","ask_price","bid_price","bid_amount"]
[1760869675066,5.26554243,189.92,189.8,22.88]
[1760869675267,0.7,189.94,189.81,1.22684263]
[1760869675581,5.26466914,189.95,189.83,22.88]
[1760869675883,5.26466914,189.95,189.84,1.22675937]
[1760869676277,5.96418559,189.97,189.84,1.22675937]
[1760869676482,0.7,189.97,189.85,18.43560705]
[1760869676661,20.19,190.0,189.88,22.88]
[1760869676863,25.45317943,190.0,189.89,0.52662067]
[1760869677066,25.45317321,190.0,189.89,1.22662067]
[1760869677286,0.7,189.99,189.89,0.7]
[1760869678187,5.26371196,189.98,189.88,28.67292903]
[1760869678371,0.7,189.97,189.88,5.26628063]
[1760869678571,0.7,189.97,189.86,5.79349046]
[1760869678889,18.42299188,189.98,189.86,5.26678658]
[1760869678890,0.7,189.96,189.86,5.26678658]
[1760869679091,0.7,189.96,189.87,0.52667614]
[1760869679277,0.7,189.96,189.86,6.49349046]
[1760869679591,18.42299188,189.98,189.86,0.52670388]
[1760869679765,18.42299188,189.98,189.75,25.0]
[1760869679766,0.7,189.95,189.79,5.2689815]
[1760869679965,11.57647521,189.94,189.79,5.2689815]
[1760869680165,18.42881212,189.92,189.8,5.96857042]
[1760869680463,18.42881212,189.92,189.78,5.26903501]
[1760869680660,10.87647521,189.9,189.75,29.1]
[1760869680866,10.87647521,189.88,189.71,5.27120341]
[1760869681065,0.7,189.95,189.76,0.7]
[1760869681273,0.7,189.95,189.78,10.87647521]
[1760869681482,0.7,189.95,189.84,22.88]
[1760869681690,0.7,189.95,189.85,0.52673163]
[1760869681871,0.7,189.94,189.79,0.7]
[1760869682072,0.7,189.94,189.81,22.88]
[1760869682399,10.87647521,189.92,189.72,0.52709255]
[1760869682574,10.87647521,189.9,189.73,5.27064776]
[1760869682886,29.9,189.92,189.76,22.88]
[1760869683194,0.7,189.91,189.8,22.88]
[1760869683505,0.7,189.9,189.73,18.44726716]
[1760869683682,0.7,189.89,189.73,41.32726716]
[1760869683990,0.7,189.88,189.76,22.88]
[1760869684163,5.26676146,189.87,189.77,18.44337881]
[1760869684366,13.16468135,189.91,189.78,1.22692591]
[1760869684367,5.26645939,189.89,189.78,1.22692591]
[1760869684664,19.12396167,189.97,189.81,10.87647521]
[1760869684884,5.96398905,189.97,189.84,22.88]
[1760869685091,5.96398905,189.97,189.85,1.22673163]
[1760869685393,5.96398905,189.97,189.86,0.7]
[1760869685591,5.96398905,189.97,189.87,0.52667614]
[1760869685900,5.96398905,189.97,189.86,0.7]
[1760869685901,0.7,189.96,189.86,0.52670388]
[1760869686395,5.96429964,189.96,189.86,5.26703887]
[1760869687191,5.96429964,189.96,189.85,0.52673163]
[1760869687192,0.7,189.95,189.83,6.49444398]
[1760869687396,0.7,189.95,189.83,5.79444398]
[1760869687713,5.26429964,189.96,189.86,22.88]
[1760869688013,5.96429964,189.96,189.87,0.52667614]
[1760869688309,0.7,189.96,189.87,0.52667614]
[1760869688534,20.89,190.0,189.88,5.96648409]
[1760869688835,0.7,189.99,189.89,0.52662067]
[1760869688990,0.7,189.99,189.86,5.26677941]
[1760869689312,0.7,189.98,189.86,41.31437658]
[1760869689495,0.7,189.97,189.86,41.31437658]
[1760869689693,0.7,189.96,189.86,5.26677941]
[1760869689889,25.45340722,190.0,189.87,1.22667614]
[1760869690298,0.7,189.99,189.87,0.52667614]
[1760869690613,5.26371196,189.98,189.88,5.96648409]
[1760869690817,0.7,189.99,189.89,0.52662067]
[1760869691017,20.19,190.0,189.91,22.88]
[1760869691314,20.19,190.0,189.92,1.22653748]
[1760869692507,20.19,190.0,189.93,5.26509766]
[1760869692702,0.7,189.99,189.91,23.40656521]
[1760869692903,0.7,189.98,189.88,5.79309299]
[1760869693119,0.7,189.97,189.86,0.7]
[1760869693298,0.7,189.97,189.87,41.84034127]
[1760869693504,25.45319044,190.0,189.88,0.7]
[1760869693826,0.7,189.99,189.9,22.88]
[1760869694008,20.19,190.0,189.91,1.20656521]
[1760869694403,20.85,190.0,189.92,5.26537489]
[1760869694615,20.19,190.0,189.93,0.52650976]
[1760869695613,0.66,189.99,189.92,5.26537489]
[1760869696628,0.66,189.99,189.92,0.52653748]
[1760869696826,19.08216242,189.99,189.9,0.52659294]
[1760869697131,20.19,190.0,189.91,0.68]
[1760869697314,0.66,189.99,189.92,0.52653748]
[1760869697514,0.66,189.99,189.88,28.67308234]
[1760869697711,0.66,189.98,189.84,5.7941487]
[1760869697949,25.45324169,190.0,189.85,0.68]
[1760869698242,20.19,190.0,189.89,22.88]
[1760869698407,20.19,190.0,189.9,0.52659294]
[1760869698608,0.66,189.99,189.91,18.42978252]
[1760869698825,0.66,189.99,189.92,0.52653748]
[1760869699032,20.19,190.0,189.92,0.52653748]
[1760869699234,20.19,190.0,189.94,22.88]
[1760869699434,20.19,190.0,189.95,0.52645433]
[1760869699635,20.19,190.0,189.96,0.68]
[1760869699846,20.19,190.0,189.97,0.5263989]
[1760869700046,20.19,190.0,189.96,22.88]
[1760869700344,20.19,190.0,189.97,0.5263989]
[1760869700639,20.19,190.0,189.91,18.42978252]
[1760869700640,20.19,190.0,189.94,5.26482046]
[1760869700839,20.19,190.0,189.94,5.7913025]
[1760869701538,20.19,190.0,189.94,18.95335367]
[1760869702348,0.66,189.99,189.92,0.52653748]
[1760869702642,5.26371196,189.98,189.86,5.26703887]
[1760869702941,0.66,189.97,189.86,5.26703887]
[1760869703129,0.66,189.96,189.87,0.52667614]
[1760869703742,5.26371196,189.98,189.89,22.88]
[1760869704040,20.85,190.0,189.91,22.88]
[1760869704341,20.85,190.0,189.92,0.52653748]
[1760869704842,20.19,190.0,189.93,5.26509766]
[1760869705143,20.19,190.0,189.94,0.52648204]
[1760869705441,0.66,189.99,189.92,5.79189481]
[1760869705629,20.19,190.0,189.92,18.95533204]
[1760869706032,20.19,190.0,189.92,5.26535733]
[1760869706234,20.19,190.0,189.88,0.5266484]
[1760869706235,0.66,189.99,189.88,0.5266484]
[1760869706434,0.66,189.99,189.87,18.43366513]
[1760869706729,0.66,189.99,189.88,0.5266484]
[1760869706935,18.42299188,189.98,189.88,5.26646944]
[1760869707150,0.66,189.97,189.86,5.26686677]
[1760869707460,0.66,189.96,189.86,5.26686677]
[1760869707629,0.66,189.95,189.86,5.26686677]
[1760869707953,0.66,189.94,189.86,5.26686677]
[1760869708327,5.26371196,189.98,189.87,0.52667614]
[1760869708629,5.92371196,189.98,189.87,1.20667614]
[1760869708839,5.92371196,189.98,189.88,5.26648409]
[1760869709540,0.66,189.97,189.88,5.26648409]
[1760869709945,0.66,189.97,189.86,36.04759717]
[1760869709946,0.66,189.96,189.86,28.1467954]
[1760869710126,0.66,189.95,189.86,28.1467954]
[1760869710623,0.66,189.95,189.86,5.2667954]
[1760869710824,5.26482046,189.94,189.85,5.2673163]
[1760869711254,0.66,189.93,189.85,5.2673163]
[1760869711457,5.26482046,189.94,189.85,5.2673163]
[1760869711634,19.08687163,189.94,189.84,1.20675937]
[1760869711822,0.66,189.93,189.82,23.40681487]
[1760869712136,0.66,189.92,189.83,5.26787125]
[1760869712461,0.66,189.92,189.81,13.17064779]
[1760869712462,0.66,189.91,189.81,5.26815348]
[1760869712752,22.88,189.97,189.82,0.68]
[1760869713055,5.92426616,189.96,189.83,5.26787125]
[1760869713265,5.92426616,189.96,189.82,5.26799271]
[1760869713266,0.66,189.95,189.82,5.26799271]
[1760869713422,0.66,189.95,189.79,29.0]
[1760869713423,0.66,189.94,189.79,22.88]
[1760869713750,10.87647521,189.92,189.78,5.26925616]
[1760869713955,0.66,189.91,189.78,5.26925616]
[1760869714143,29.64,189.9,189.76,5.2698145]
[1760869714449,0.66,189.89,189.77,1.20695368]
[1760869714650,0.66,189.88,189.77,1.20695368]
[1760869714868,28.98,189.91,189.78,5.26925914]
[1760869714869,0.66,189.87,189.78,5.26925914]
[1760869715069,0.66,189.86,189.78,5.26925914]
[1760869715278,18.43075302,189.9,189.78,5.26925914]
[1760869715447,0.66,189.85,189.76,18.44408425]
[1760869716053,0.66,189.86,189.74,5.95012091]
[1760869716255,33.34834649,190.0,189.74,5.95012091]
[1760869716256,0.66,189.85,189.74,5.27012091]
[1760869716481,0.66,189.85,189.73,5.27061698]
[1760869716973,0.66,189.85,189.75,5.27009222]
[1760869717170,0.66,189.88,189.78,22.88]
[1760869717377,0.66,189.87,189.78,22.88]
[1760869717545,10.87647521,189.91,189.76,0.68]
[1760869717742,10.87647521,189.89,189.74,5.27019842]
[1760869717943,10.87647521,189.87,189.73,5.27063942]
[1760869718148,10.87647521,189.85,189.7,5.27148128]
[1760869718383,10.87647521,189.83,189.69,5.27174776]
[1760869718604,0.66,189.82,189.69,5.27174776]
[1760869718776,0.66,189.81,189.67,5.27204206]
[1760869718979,0.66,189.8,189.67,5.27204206]
[1760869719182,0.66,189.79,189.67,5.27204206]
[1760869719484,0.66,189.78,189.67,5.27204206]
[1760869719953,0.66,189.81,189.7,22.88]
[1760869720555,0.66,189.84,189.71,1.20712034]
[1760869720761,0.66,189.84,189.72,0.68]
[1760869720959,0.66,189.84,189.74,18.44629491]
[1760869721267,5.92676146,189.87,189.75,1.20700922]
[1760869721479,0.66,189.87,189.77,22.88]
[1760869721677,4.36993148,190.02,189.77,22.88]
[1760869721678,0.66,189.93,189.78,24.08692591]
[1760869721861,0.66,189.93,189.79,0.68]
[1760869722062,0.66,189.93,189.8,0.52687038]
[1760869722263,19.08784182,189.93,189.81,0.68]
[1760869722874,19.08784182,189.93,189.82,0.52681487]
[1760869723078,19.08784182,189.93,189.83,5.26787125]
[1760869723375,0.66,189.92,189.83,5.26787125]
[1760869723876,0.68,189.94,189.83,5.96787125]
[1760869724175,0.68,189.94,189.83,19.6643365]
[1760869724482,0.68,189.98,189.86,22.88]
[1760869724668,0.68,189.98,189.87,0.7]
[1760869724851,20.19,190.0,189.88,0.5266484]
[1760869724852,25.45330504,190.0,189.88,0.5266484]
[1760869725053,20.19,190.0,189.92,22.88]
[1760869725258,20.19,190.0,189.93,0.52650976]
[1760869725483,20.19,190.0,189.94,0.7]
[1760869725777,20.19,190.0,189.95,0.52645433]
[1760869726076,20.19,190.0,189.95,1.22645433]
[1760869726270,20.19,190.0,189.94,0.52648204]
[1760869726763,20.19,190.0,189.94,1.22648204]
[1760869727087,20.19,190.0,189.92,0.52653748]
[1760869727285,20.19,190.0,189.93,0.52650976]
[1760869727465,20.19,190.0,189.94,0.7]
[1760869727783,20.19,190.0,189.92,41.30858332]
[1760869728264,20.19,190.0,189.93,0.52650976]
[1760869728662,20.19,190.0,189.94,0.7]
[1760869728856,20.19,190.0,189.95,0.52645433]
[1760869729059,20.19,190.0,189.96,19.12493156]
[1760869729260,20.19,190.0,189.97,1.2263989]
[1760869729460,20.19,190.0,189.96,5.26426616]
[1760869729887,20.19,190.0,189.97,0.7]
[1760869730089,20.19,190.0,189.97,1.2263989]
[1760869730274,20.19,190.0,189.98,0.7]
[1760869730464,20.19,190.0,189.97,0.5263989]
[1760869730895,20.19,190.0,189.99,22.88]
[1760869731093,20.19,190.0,189.99,29.3697784]
[1760869731594,43.63014,190.06,189.99,42.52836569]
[1760869732206,22.98,190.19,189.99,42.52836569]
[1760869732207,0.68,190.18,190.08,22.88]
[1760869732501,0.68,190.17,190.1,22.88]
[1760869732998,0.68,190.17,190.11,5.78590127]
[1760869733179,0.1,190.19,190.11,5.78590127]
[1760869733497,0.68,190.18,190.11,5.78590127]
[1760869733787,0.68,190.18,190.11,5.25989002]
[1760869734193,0.68,190.17,190.1,22.88]
[1760869734370,5.35796008,190.19,190.03,26.3111321]
[1760869734371,0.68,190.16,190.06,0.52614963]
[1760869734571,0.68,190.16,190.09,22.88]
[1760869734890,0.68,190.15,190.06,0.52614963]
[1760869735074,5.25928263,190.14,190.05,5.26173387]
[1760869735274,0.68,190.15,190.05,5.78791119]
[1760869735490,0.68,190.15,190.03,5.26223183]
[1760869735491,0.68,190.14,190.03,5.26223183]
[1760869735797,0.68,190.13,190.03,34.06223183]
[1760869736088,0.68,190.12,190.03,34.06223183]
[1760869736693,5.94003048,190.12,190.03,34.06223183]
[1760869737881,0.68,190.11,190.03,34.06223183]
[1760869738079,10.87647521,190.17,190.03,28.8]
[1760869738400,0.68,190.1,190.01,23.40628809]
[1760869738582,10.87647521,190.17,190.01,23.40628809]
[1760869738779,0.68,190.16,190.01,23.40628809]
[1760869739097,0.68,190.15,190.01,41.82632912]
[1760869739292,0.68,190.14,190.01,23.40628809]
[1760869739497,0.68,190.13,189.99,52.16634349]
[1760869739696,0.68,190.12,189.99,57.42954067]
[1760869739887,18.41136243,190.1,189.99,28.76]
[1760869740093,0.68,190.09,189.99,28.76]
[1760869740293,0.68,190.08,189.95,0.52645433]
[1760869740789,0.68,190.14,190.0,10.87647521]
[1760869741000,0.68,190.17,190.04,22.88]
[1760869741177,0.68,190.17,190.05,23.40617732]
[1760869741379,0.68,190.16,190.06,28.74]
[1760869741597,0.68,190.16,190.04,28.74]
[1760869741799,0.68,190.16,190.05,0.52617732]
[1760869742002,5.93773419,190.2,190.09,22.88]
[1760869742190,0.68,190.2,190.1,0.52603892]
[1760869742381,5.93774396,190.2,190.1,0.52603892]
[1760869742576,5.35794212,190.19,190.1,0.52603892]
[1760869742806,0.1,190.19,190.1,0.52603892]
[1760869743101,0.1,190.19,190.1,29.28603892]
[1760869743979,0.1,190.19,190.11,18.41039397]
[1760869744207,0.1,190.19,190.14,22.88]
[1760869744383,0.1,190.19,190.15,0.5259006]
[1760869745300,0.1,190.19,190.16,22.88]
[1760869745608,0.1,190.19,190.18,22.88]
[1760869745811,0.1,190.19,190.13,0.52595592]
[1760869746017,0.1,190.19,190.14,22.88]
[1760869746584,0.68,190.18,190.1,30.24603892]
[1760869746886,0.68,190.18,190.1,6.7863827]
[1760869747082,0.68,190.18,190.1,1.0]
[1760869747300,0.68,190.17,190.1,1.0]
[1760869747506,0.68,190.16,190.1,1.0]
[1760869747689,0.68,190.15,190.1,1.0]
[1760869748008,18.40845736,190.13,190.1,0.28]
[1760869748214,5.25955924,190.13,190.1,0.28]
[1760869748584,5.93955924,190.13,190.1,0.28]
[1760869748798,5.25955924,190.13,190.1,0.28]
[1760869749003,0.68,190.12,190.1,0.28]
[1760869749206,0.68,190.11,190.1,0.28]
[1760869749384,5.25955924,190.13,190.1,0.28]
[1760869749584,0.68,190.12,190.1,0.28]
[1760869749881,0.68,190.11,190.1,0.28]
[1760869750305,5.26038926,190.1,189.97,1.2463989]
[1760869750502,5.26038926,190.1,189.98,5.98366523]
[1760869750707,0.68,190.11,190.01,22.88]
[1760869751005,5.25955924,190.13,190.02,1.24626039]
[1760869751190,5.25915128,190.15,190.03,0.72]
[1760869751405,5.25915128,190.15,189.99,25.0]
[1760869751406,23.57,190.14,189.99,0.52634349]
[1760869751595,10.87647521,190.13,189.96,1.24642661]
[1760869751914,0.69,190.12,189.97,5.98375715]
[1760869752117,19.10039397,190.11,189.99,22.88]
[1760869752317,19.10039397,190.11,189.97,0.72]
[1760869752318,0.69,190.1,189.97,0.72]
[1760869753191,29.37,190.1,189.95,0.52645433]
[1760869753395,0.69,190.1,189.96,1.24642661]
[1760869753607,0.69,190.1,189.97,0.72]
[1760869753813,0.69,190.1,189.98,23.40637119]
[1760869754108,5.260666,190.09,189.99,5.93343491]
[1760869754298,5.260666,190.09,190.0,0.52631578]
[1760869754503,0.69,190.08,189.95,0.67]
[1760869754724,0.69,190.08,189.96,0.52642661]
[1760869755097,0.69,190.08,189.95,28.14451729]
[1760869755297,0.69,190.07,189.95,28.14451729]
[1760869755510,0.69,190.06,189.95,28.14451729]
[1760869755714,0.69,190.05,189.93,5.26485299]
[1760869756000,18.4181445,190.03,189.92,6.4616694]
[1760869756321,0.69,190.02,189.92,5.93513192]
[1760869756493,0.69,190.02,189.93,0.52650976]
[1760869757110,13.15404538,190.06,189.93,0.52650976]
[1760869757319,13.15404538,190.06,189.94,0.67]
[1760869757519,5.95177321,190.05,189.94,0.67]
[1760869757904,5.95177321,190.05,189.93,0.52650976]
[1760869758103,5.26315789,190.0,189.89,0.67]
[1760869758304,5.95315789,190.0,189.89,0.67]
[1760869758505,0.69,190.0,189.89,0.67]
[1760869758906,0.69,190.0,189.86,0.52670388]
[1760869759514,0.69,190.0,189.85,6.46403272]
[1760869759717,0.69,189.99,189.85,6.46403272]
[1760869760021,5.95386872,189.98,189.85,18.96232347]
[1760869760197,0.69,189.97,189.86,0.67]
[1760869760400,0.69,189.97,189.87,0.52667614]
[1760869760807,0.69,189.97,189.88,0.67]
[1760869761326,0.69,190.1,189.96,22.88]
[1760869761506,0.69,190.1,189.97,1.1963989]
[1760869761709,0.69,190.1,189.98,0.67]
[1760869762019,0.69,190.1,190.0,18.42105262]
[1760869762211,5.2602412,190.11,190.01,1.19628809]
[1760869762512,5.9502412,190.11,190.01,1.19628809]
[1760869763101,5.95019382,190.11,190.01,1.19628809]
[1760869763303,5.95019382,190.11,190.0,5.26315789]
[1760869763506,0.69,190.1,190.01,0.52628809]
[1760869764126,5.95049929,190.1,190.01,0.52628809]
[1760869764302,5.95049929,190.1,190.0,0.52631578]
[1760869764625,19.10147246,190.1,189.98,5.78985197]
[1760869764811,0.69,190.09,189.98,5.78985197]
[1760869765122,0.69,190.08,189.97,23.55]
[1760869765324,0.69,190.08,189.97,28.81385134]
[1760869765624,0.69,190.08,189.97,29.34025024]
[1760869765816,0.69,190.08,189.98,0.67]
[1760869766018,0.69,190.08,189.95,1.19645433]
[1760869766204,0.69,190.07,189.94,5.26475332]
[1760869766404,0.69,190.06,189.91,14.36046993]
[1760869766717,0.69,190.05,189.92,0.67]
[1760869766920,0.69,190.05,189.92,1.19653748]
[1760869767114,0.69,190.04,189.93,5.26502134]
[1760869767527,0.69,190.04,189.94,1.19648204]
[1760869768318,22.88,190.12,189.94,0.52648204]
[1760869768613,28.29506897,190.15,189.83,0.67]
[1760869768614,22.88,189.97,189.83,0.67]
[1760869768917,30.01648204,189.96,189.83,0.67]
[1760869769521,28.8,189.95,189.83,0.67]
[1760869769719,0.52648204,189.94,189.83,0.67]
[1760869769923,28.8,189.93,189.84,0.52675937]
[1760869770228,5.26565215,189.91,189.83,0.67]
[1760869770419,0.52648204,189.9,189.83,0.67]
[1760869770727,0.52648204,189.9,189.83,5.93774493]
[1760869770912,0.52648204,189.9,189.83,0.67]
[1760869771223,0.52648204,189.9,189.83,5.93783763]
[1760869771422,0.52648204,189.9,189.83,0.67]
[1760869771626,0.52648204,189.9,189.83,5.93781626]
[1760869772115,5.26620675,189.89,189.8,0.67]
[1760869772322,0.52648204,189.88,189.8,0.67]
[1760869772806,1.21648204,189.88,189.8,0.67]
[1760869773903,1.21648204,189.88,189.8,5.9386655]
[1760869774107,29.97648204,189.88,189.8,5.9386655]
[1760869774607,5.26676146,189.87,189.8,5.9386655]
[1760869774807,0.52648204,189.86,189.8,5.9386655]
[1760869775044,0.52648204,189.86,189.78,23.55]
[1760869775214,29.43,189.85,189.69,1.52717591]
[1760869775415,1.21648204,189.84,189.69,1.0]
[1760869775616,22.88,189.82,189.69,1.0]
[1760869775820,1.21648204,189.81,189.69,1.0]
[1760869776025,0.69,189.8,189.69,1.0]
[1760869776226,10.87647521,189.78,189.69,1.0]
[1760869776432,18.44435075,189.76,189.69,1.0]
[1760869776618,0.52648204,189.75,189.69,1.0]
[1760869776927,29.45,189.74,189.69,1.0]
[1760869777118,1.21648204,189.73,189.69,1.0]
[1760869777644,29.28648204,189.73,189.69,1.0]
[1760869778107,29.97648204,189.73,189.69,1.0]
[1760869778722,35.24726339,189.73,189.69,1.0]
[1760869778922,5.7973187,189.73,189.69,1.0]
[1760869779256,0.69,189.72,189.69,1.0]
[1760869779422,0.52648204,189.71,189.69,1.0]
[1760869780223,28.72,189.75,189.7,0.67]
[1760869780425,0.52648204,189.74,189.69,1.0]
[1760869780638,0.52648204,189.74,189.7,0.67]
[1760869780814,28.72,189.77,189.71,5.27120341]
[1760869781010,0.69,189.82,189.72,0.67]
[1760869781214,5.95817644,189.82,189.72,0.67]
[1760869781416,0.52648204,189.81,189.73,0.52706477]
[1760869781636,0.52648204,189.81,189.74,0.67]
[1760869781853,0.69,189.8,189.69,1.67]
[1760869782023,0.52648204,189.79,189.69,1.67]
[1760869782224,0.52648204,189.79,189.69,6.94164583]
[1760869782530,0.69,189.78,189.69,6.94164583]
[1760869782732,0.52648204,189.77,189.69,6.94164583]
[1760869782923,0.69,189.78,189.7,0.52714812]
[1760869783123,6.48577867,189.78,189.69,20.12104379]
[1760869783324,6.48577867,189.78,189.69,6.94164583]
[1760869784745,18.96892652,189.78,189.69,1.0]
[1760869785050,0.71,189.77,189.69,1.0]
[1760869785229,1.23648204,189.76,189.69,1.0]
[1760869785414,0.71,189.75,189.69,1.0]
[1760869785614,0.52648204,189.74,189.69,1.0]
[1760869785827,18.44244448,189.78,189.69,1.0]
[1760869785828,0.71,189.73,189.69,1.0]
[1760869786022,29.93648204,189.72,189.69,1.0]
[1760869786515,5.79742936,189.72,189.69,1.0]
[1760869786838,5.79746221,189.72,189.69,1.0]
[1760869788316,0.52648204,189.72,189.69,1.0]
[1760869788621,18.97383392,189.73,189.65,0.2]
[1760869788819,10.87647521,189.68,189.58,0.2]
[1760869789126,29.22648204,189.67,189.58,0.2]
[1760869789437,29.59648204,189.67,189.58,0.2]
[1760869789747,28.7,189.66,189.58,0.2]
[1760869789925,0.52648204,189.65,189.58,0.2]
[1760869790321,28.68,189.64,189.58,0.2]
[1760869790539,0.52648204,189.63,189.58,0.2]
[1760869790839,0.52648204,189.63,189.59,0.69]
[1760869791029,0.52648204,189.63,189.58,5.47471628]
[1760869791030,0.52648204,189.64,189.6,0.69]
[1760869791232,0.52648204,189.64,189.61,0.69]
[1760869791943,0.52648204,189.65,189.61,0.69]
[1760869792346,22.88,189.72,189.62,0.69]
[1760869792547,28.66,189.76,189.64,22.88]
[1760869792749,28.66,189.76,189.65,1.2172871]
[1760869792956,0.71,189.75,189.65,0.69]
[1760869794228,5.27036997,189.74,189.65,0.69]
[1760869794435,5.27036997,189.74,189.65,5.96284793]
[1760869794747,28.66,189.73,189.65,5.96284793]
[1760869795051,28.66,189.72,189.65,5.96284793]
[1760869795249,5.27036997,189.74,189.65,5.96284793]
[1760869795454,5.27036997,189.74,189.65,5.27284793]
[1760869795657,5.27036997,189.74,189.66,5.96254209]
[1760869795658,33.91036997,189.74,189.66,5.96254209]
[1760869796146,28.62,189.73,189.66,5.96254209]
[1760869796342,0.71,189.79,189.67,1.2172315]
[1760869796652,28.62,189.78,189.68,0.69]
[1760869797543,5.2698145,189.76,189.68,5.96197306]
[1760869798033,5.2698145,189.76,189.68,0.69]
[1760869798748,5.2698145,189.76,189.67,5.27227309]
[1760869799152,18.44435075,189.76,189.67,5.27227309]
[1760869799837,5.2698145,189.76,189.67,5.96227309]
[1760869800060,28.58,189.75,189.67,5.96227309]
[1760869800366,5.2698145,189.76,189.68,0.69]
[1760869800661,0.71,189.8,189.68,0.69]
[1760869800662,33.8494826,189.78,189.69,0.52717591]
[1760869800871,34.5594826,189.78,189.68,0.69]
[1760869801026,47.73263045,189.78,189.65,5.27265498]
[1760869801242,10.87647521,189.76,189.58,0.2]
[1760869801447,22.88,189.65,189.58,0.2]
[1760869801650,18.4569952,189.63,189.58,0.2]
[1760869801929,28.6,189.62,189.58,0.2]
[1760869802128,28.58,189.64,189.59,0.69]
[1760869802359,22.88,189.72,189.6,0.69]
[1760869802541,29.33,189.74,189.61,23.40739834]
[1760869802746,0.71,189.74,189.62,0.69]
[1760869802937,28.62,189.74,189.63,0.52734272]
[1760869803254,28.62,189.75,189.64,0.69]
[1760869803460,28.62,189.75,189.65,0.5272871]
[1760869803760,5.97929194,189.78,189.67,5.27231507]
[1760869803941,0.71,189.78,189.68,1.21720371]
[1760869804145,28.62,189.8,189.69,0.69]
[1760869804464,29.33,189.8,189.7,0.52714812]
[1760869804634,29.33,189.8,189.71,0.69]
[1760869804834,13.87942298,189.84,189.72,0.52709255]
[1760869805061,28.6,189.83,189.73,0.69]
[1760869805287,5.26787125,189.83,189.73,0.69]
[1760869805491,33.86787125,189.83,189.73,0.69]
[1760869805783,5.26787125,189.83,189.74,5.27036997]
[1760869805996,0.71,189.82,189.7,0.69]
[1760869806193,5.26787125,189.83,189.71,0.69]
[1760869806493,5.26787125,189.83,189.72,23.40709255]
[1760869806691,42.47794039,189.86,189.73,0.69]
[1760869806866,5.2673163,189.85,189.74,0.52703699]
[1760869807187,5.2673163,189.85,189.72,22.88]
[1760869807188,0.71,189.84,189.72,22.88]
[1760869807375,0.71,189.84,189.73,0.69]
[1760869807563,0.71,189.84,189.7,1.21714812]
[1760869807765,0.71,189.83,189.71,5.96120341]
[1760869807977,0.71,189.83,189.72,1.21709255]
[1760869808174,0.71,189.83,189.72,0.52709255]
[1760869808385,0.71,189.83,189.73,0.69]
[1760869808899,0.71,189.83,189.67,25.0]
[1760869808900,11.40356776,189.82,189.62,1.0]
[1760869809105,22.88,189.71,189.62,1.0]
[1760869809414,22.88,189.67,189.62,1.0]
[1760869809692,5.27287107,189.65,189.62,1.0]
[1760869809892,0.52709255,189.64,189.62,1.0]
[1760869810104,0.52709255,189.69,189.62,1.0]
[1760869810287,28.66,189.68,189.62,1.0]
[1760869810601,29.18709255,189.67,189.62,1.0]
[1760869810790,29.80709255,189.67,189.62,1.0]
[1760869810996,0.52709255,189.67,189.62,1.0]
[1760869811206,0.62,189.67,189.62,1.0]
[1760869811398,0.52709255,189.67,189.62,1.0]
[1760869811569,28.64,189.67,189.62,1.0]
[1760869811770,5.27287107,189.65,189.62,1.0]
[1760869811972,0.52709255,189.66,189.62,1.0]
[1760869812183,5.79973505,189.66,189.62,1.0]
[1760869812366,6.41973505,189.66,189.62,1.0]